fUSD/lending_fUSD_20240423
["ID","MTS","AMOUNT","RATE_DAILY","PERIOD"]
[323272263,1713861053338,-1095.5,0.00012165,2]
[323272264,1713861053348,-500.0,0.00012165,2]
[323272265,1713861053357,-500.0,0.00012165,2]
[323272266,1713861053366,-2027.48,0.00012165,2]
[323272267,1713861053377,-500.0,0.00012165,2]
[323272268,1713861053386,-500.0,0.00012165,2]
[323272269,1713861053401,-500.0,0.00012165,2]
[323272270,1713861053410,-1341.5,0.00012165,2]
[323272271,1713861053419,-1676.07,0.00012165,2]
[323272272,1713861053428,-500.0,0.00012165,2]
[323272273,1713861053438,-500.0,0.00012165,2]
[323272274,1713861053447,-500.0,0.00012166,2]
[323272275,1713861053456,-500.0,0.00012166,2]
[323272276,1713861053469,-1221.59,0.00012166,2]
[323272277,1713861053478,-2465.55,0.00012166,2]
[323272278,1713861053488,-1246.41,0.00012166,2]
[323272279,1713861053498,-500.0,0.00012166,2]
[323272280,1713861053507,-500.0,0.00012166,2]
[323272281,1713861053516,-500.0,0.00012166,2]
[323272282,1713861053525,-519.94968374,0.00012166,2]
[323272283,1713861053534,-500.0,0.00012166,2]
[323272284,1713861053543,-1629.2,0.00012166,2]
[323272285,1713861053551,-500.0,0.00012166,2]
[323272286,1713861053561,-1975.23,0.00012166,2]
[323272287,1713861053570,-500.0,0.00012166,2]
[323272288,1713861053579,-727.43,0.00012166,2]
[323272289,1713861053590,-1291.41,0.00012166,2]
[323272290,1713861053599,-520.57,0.00012166,2]
[323272291,1713861053608,-1662.46,0.00012166,2]
[323272292,1713861053617,-612.45,0.00012166,2]
[323272293,1713861053626,-500.0,0.00012166,2]
[323272294,1713861053635,-500.0,0.00012166,2]
[323272295,1713861053645,-500.0,0.00012166,2]
[323272296,1713861053654,-500.0,0.00012166,2]
[323272297,1713861053662,-500.0,0.00012166,2]
[323272298,1713861053671,-500.0,0.00012166,2]
[323272299,1713861053681,-812.93,0.00012166,2]
[323272300,1713861053689,-500.0,0.00012166,2]
[323272301,1713861053699,-500.0,0.00012166,2]
[323272302,1713861053708,-427.77830865,0.00012166,2]
[323272303,1713861053717,-151.0,0.00012166,2]
[323272304,1713861053726,-500.0,0.00012166,2]
[323272305,1713861053735,-500.0,0.00012166,2]
[323272306,1713861053744,-2315.55,0.00012166,2]
[323272307,1713861053753,-621.37,0.00012166,2]
[323272308,1713861053762,-500.0,0.00012166,2]
[323272309,1713861053771,-1701.41,0.00012166,2]
[323272310,1713861053780,-427.15756328,0.00012166,2]
[323272311,1713861053790,-16815.7105,0.00012166,2]
[323272312,1713861053799,-234515.7601,0.00012166,2]
[323272313,1713861053809,-42737.5874,0.00012166,2]
[323272314,1713861053818,-500.0,0.00012167,2]
[323272315,1713861053827,-500.0,0.00012167,2]
[323272316,1713861053836,-500.0,0.00012167,2]
[323272317,1713861053847,-500.0,0.00012167,2]
[323272318,1713861053856,-500.0,0.00012167,2]
[323272319,1713861053865,-500.0,0.00012167,2]
[323272320,1713861053874,-656.76,0.00012167,2]
[323272321,1713861053883,-500.0,0.00012167,2]
[323272322,1713861053892,-500.0,0.00012167,2]
[323272323,1713861053901,-500.0,0.00012167,2]
[323272324,1713861053910,-500.48,0.00012167,2]
[323272325,1713861053919,-500.0,0.00012167,2]
[323272326,1713861053928,-500.0,0.00012167,2]
[323272327,1713861053937,-500.0,0.00012167,2]
[323272328,1713861053947,-500.0,0.00012167,2]
[323272329,1713861053955,-500.0,0.00012167,2]
[323272330,1713861053965,-500.0,0.00012167,2]
[323272331,1713861053974,-855.71,0.00012167,2]
[323272332,1713861053983,-500.0,0.00012167,2]
[323272333,1713861053992,-803.14,0.00012167,2]
[323272334,1713861054002,-197.57532904,0.00012167,2]
[323272335,1713861054010,-757.82,0.00012167,2]
[323272336,1713861054020,-500.0,0.00012167,2]
[323272337,1713861054029,-500.0,0.00012167,2]
[323272338,1713861054038,-744.52,0.00012167,2]
[323272339,1713861054047,-500.04,0.00012167,2]
[323272340,1713861054057,-500.0,0.00012167,2]
[323272341,1713861054067,-500.0,0.00012167,2]
[323272342,1713861054076,-500.0,0.00012167,2]
[323272343,1713861054086,-500.0,0.00012167,2]
[323272344,1713861054098,-500.0,0.00012167,2]
[323272345,1713861054107,-500.0,0.00012167,2]
[323272346,1713861054116,-500.0,0.00012167,2]
[323272347,1713861054125,-287.06829841,0.00012167,2]
[323272348,1713861054135,-480.85361685,0.00012167,2]
[323272349,1713861054144,-500.0,0.00012167,2]
[323272350,1713861054153,-500.0,0.00012167,2]
[323272351,1713861054162,-561.71,0.00012167,2]
[323272352,1713861054170,-600.75,0.00012167,2]
[323272353,1713861054179,-505.97,0.00012167,2]
[323272354,1713861054188,-573.49650135,0.00012167,2]
[323272355,1713861054197,-500.0,0.00012169,2]
[323272356,1713861054207,-150.0,0.00012191,2]
[323272357,1713861054216,-418.94,0.00012192,2]
[323272358,1713861054225,-521.81,0.00012192,2]
[323272359,1713861054234,-473.68,0.00012192,2]
[323272360,1713861054243,-700.58,0.00012192,2]
[323272361,1713861054252,-150.0,0.00012192,2]
[323272362,1713861054262,-301.96,0.00012192,2]
[323272363,1713861054271,-150.0,0.00012198,2]
[323272364,1713861054280,-1500.0,0.00012199,2]
[323272365,1713861054289,-45006.32002993,0.000122,2]
[323272366,1713861054311,-403.91451485,0.000122,2]
[323272367,1713861054323,-1062.35456196,0.000122,2]
[323272368,1713861054334,-1426.29988665,0.000122,2]
[323272369,1713861054368,-3989.74519,0.000122,2]
[323272370,1713861054383,-1853.6965244,0.000122,2]
[323272371,1713861054399,-550.59364922,0.000122,2]
[323272372,1713861054412,-32318.87969999,0.000122,2]
[323272373,1713861054439,-7348.09245354,0.000122,2]
[323272374,1713861054448,-418.29,0.000122,2]
[323272375,1713861054457,-150.0,0.000122,2]
[323272376,1713861054468,-150.0,0.000122,2]
[323272377,1713861054477,-153.43,0.000122,2]
[323272378,1713861054487,-700.66,0.000122,2]
[323272379,1713861054496,-150.0,0.00012201,2]
[323272380,1713861054506,-1056.0,0.00012205,2]
[323272381,1713861054515,-150.0,0.00012209,2]
[323272382,1713861054524,-52.82754646,0.00012214,2]
[323272383,1713861054535,-247.17245354,0.00012214,2]
[323272384,1713861054544,-98.73901814,0.00012222,2]
[323272385,1713861054556,-901.26098186,0.00012222,2]
[323272386,1713861054566,-224.90583068,0.00012226,2]
[323272387,1713861054575,-150.0,0.0001225,2]
[323272388,1713861054584,-500.0,0.00012265,2]
[323272389,1713861054594,-207.22680324,0.00012266,2]
[323272390,1713861054603,-1368.35478421,0.00012266,2]
[323272391,1713861054621,-2871.60311563,0.00012266,2]
[323272392,1713861054633,-336.47806018,0.00012266,2]
[323272393,1713861054642,-34.25455571,0.00012266,2]
[323272394,1713861054654,-465.74544429,0.00012266,2]
[323272395,1713861054664,-201.23562649,0.00012268,2]
[323272396,1713861054674,-288.09387491,0.00012268,2]
[323272397,1713861054684,-155.58162898,0.00012268,2]
[323272398,1713861054694,-205.4157664,0.00012268,2]
[323272399,1713861054703,-284.89752455,0.00012268,2]
[323272400,1713861054745,-500.0,0.00011889,2]
[323272401,1713861054754,-1.9106365,0.00012268,2]
[323272402,1713861054764,-155.25528561,0.00012268,2]
[323272403,1713861054773,-155.25082169,0.00012268,2]
[323272404,1713861054783,-155.17580525,0.00012268,2]
[323272405,1713861054792,-119.69745095,0.00012268,2]
[323272406,1713861054804,-35.4344383,0.00012268,2]
[323272407,1713861054813,-155.0,0.00012268,2]
[323272408,1713861054823,-155.20802917,0.00012268,2]
[323272409,1713861054833,-1000.0,0.00012275,2]
[323272410,1713861054843,-500.0,0.00012275,2]
[323272411,1713861054853,-493.57,0.00012298,2]
[323272412,1713861054862,-455.78271799,0.000123,2]
[323272413,1713861054872,-195.03,0.0001232,2]
[323272414,1713861054881,-1000.0,0.00012327,2]
[323272415,1713861054891,-224.90583068,0.00012371,2]
[323272416,1713861054900,-318.08255522,0.00012371,2]
[323272417,1713861054909,-493.26101252,0.00012371,2]
[323272418,1713861054919,-2745.68768226,0.00012371,2]
[323272419,1713861055808,-210.24604904,0.00011881,2]
[323272420,1713861055818,-411.10777307,0.00011889,2]
[323272421,1713861055828,-500.0,0.00011889,2]
[323272422,1713861055838,-500.0,0.00011889,2]
[323272423,1713861055848,-361.64617789,0.00011889,2]
[323272424,1713861055859,-138.35382211,0.00011889,2]
[323272425,1713861055868,-502.48180941,0.00011889,2]
[323272426,1713861055878,-84.42807704,0.00011889,2]
[323272427,1713861055912,-415.57192296,0.00011889,2]
[323272428,1713861055921,-209.42807704,0.00011889,2]
[323272429,1713861055933,-290.57192296,0.00011889,2]
[323272430,1713861055943,-500.0,0.00011889,2]
[323272431,1713861055952,-540.66807704,0.00012163,2]
[323272432,1713861055963,-13.99192296,0.00012163,2]
[323272433,1713861055973,-667.84391099,0.00012371,2]
[323272434,1713861055984,-494.33920324,0.00012371,2]
[323272435,1713861055996,-412.05918344,0.00012371,2]
[323272436,1713861056041,-412.53,0.00012163,2]
[323272437,1713861056050,-1313.69500838,0.00012371,2]
[323272438,1713861056060,-206.71908165,0.00012371,2]
[323272439,1713861056069,-268.01529124,0.00012371,2]
[323272440,1713861056078,-1000.0,0.00012379,2]
[323272441,1713861056088,-35.82078896,0.00012379,2]
[323272442,1713861056099,-464.17921104,0.00012379,2]
[323272443,1713861056109,-74.94208315,0.00012392,2]
[323272444,1713861056120,-384.34999965,0.00012392,2]
[323272445,1713861056131,-150.7079172,0.00012392,2]
[323272446,1713861056140,-437.0,0.00012392,2]
[323272447,1713861056150,-807.0,0.00012392,2]
[323272448,1713861056159,-258.0,0.00012392,2]
[323272449,1713861056169,-1858.0,0.00012392,2]
[323272450,1713861056178,-402.0,0.00012392,2]
[323272451,1713861056187,-1474.0,0.00012392,2]
[323272452,1713861056197,-3120.0,0.00012392,2]
[323272453,1713861056206,-2445.0,0.00012392,2]
[323272454,1713861056215,-150.0,0.00012392,2]
[323272455,1713861056224,-1641.0,0.00012392,2]
[323272456,1713861056233,-214.0,0.00012392,2]
[323272457,1713861056243,-150.0,0.00012392,2]
[323272458,1713861056253,-195.0,0.00012392,2]
[323272459,1713861056262,-443.0,0.00012392,2]
[323272460,1713861056271,-1140.0,0.00012392,2]
[323272461,1713861056281,-1394.0,0.00012392,2]
[323272462,1713861056290,-462.0,0.00012392,2]
[323272463,1713861056299,-5730.0,0.00012392,2]
[323272464,1713861056308,-969.0,0.00012392,2]
[323272465,1713861056318,-1378.84745936,0.00012392,2]
[323272466,1713861056329,-311.7686698,0.00012392,2]
[323272467,1713861056341,-604.38387084,0.00012392,2]
[323272468,1713861056350,-2595.61612916,0.00012392,2]
[323272469,1713861056393,-500.0,0.00012163,2]
[323272470,1713861056405,-508.69101409,0.00012163,2]
[323272471,1713861056414,-3298.38387084,0.00012392,2]
[323272472,1713861056423,-13283.52610542,0.00012392,2]
[323272473,1713861056442,-1032.20097925,0.00012392,2]
[323272474,1713861056454,-981.30311709,0.00012392,2]
[323272475,1713861056465,-1516.6,0.00012392,2]
[323272476,1713861056477,-20882.36979824,0.00012392,2]
[323272477,1713861056487,-2706.0,0.00012392,2]
[323272478,1713861056496,-1256.0,0.00012392,2]
[323272479,1713861056506,-1228.0,0.00012392,2]
[323272480,1713861056515,-542.0,0.00012392,2]
[323272481,1713861056524,-500.0,0.00012418,2]
[323272482,1713861056533,-500.0,0.00012418,2]
[323272483,1713861056542,-500.0,0.00012418,2]
[323272484,1713861056552,-500.0,0.00012418,2]
[323272485,1713861056561,-503.9745,0.00012418,2]
[323272486,1713861056571,-488.38849224,0.00012431,2]
[323272487,1713861056580,-161.023,0.00012432,2]
[323272488,1713861056590,-152.0,0.00012432,2]
[323272489,1713861056600,-248.051,0.00012432,2]
[323272490,1713861056609,-250.0,0.00012432,2]
[323272491,1713861056618,-150.0,0.00012432,2]
[323272492,1713861056628,-200.0,0.00012432,2]
[323272493,1713861056637,-260.0,0.00012432,2]
[323272494,1713861056647,-152.335,0.00012432,2]
[323272495,1713861056656,-150.998,0.00012432,2]
[323272496,1713861056665,-150.263,0.00012434,2]
[323272497,1713861056675,-150.143,0.00012434,2]
[323272498,1713861056684,-275.0,0.00012434,2]
[323272499,1713861056694,-187.9,0.00012434,2]
[323272500,1713861056703,-280.793,0.00012434,2]
[323272501,1713861056712,-264.188,0.00012434,2]
[323272502,1713861056721,-254.701,0.00012434,2]
[323272503,1713861056730,-150.452,0.00012434,2]
[323272504,1713861056739,-165.0,0.00012434,2]
[323272505,1713861056748,-2334.92,0.00012437,2]
[323272506,1713861056757,-508.31,0.00012437,2]
[323272507,1713861056766,-500.0,0.00012437,2]
[323272508,1713861056775,-536.91,0.00012437,2]
[323272509,1713861056784,-1399.63,0.00012437,2]
[323272510,1713861056793,-500.0,0.00012437,2]
[323272511,1713861056802,-4449.23,0.00012437,2]
[323272512,1713861056811,-500.0,0.00012437,2]
[323272513,1713861056820,-500.0,0.00012437,2]
[323272514,1713861056829,-9931.97,0.00012437,2]
[323272515,1713861056838,-500.0,0.00012437,2]
[323272516,1713861056848,-1268.06,0.00012437,2]
[323272517,1713861056857,-500.0,0.00012437,2]
[323272518,1713861056866,-3748.4,0.00012437,2]
[323272519,1713861056875,-1319.96,0.00012437,2]
[323272520,1713861056885,-500.0,0.00012437,2]
[323272521,1713861056894,-500.0,0.00012437,2]
[323272522,1713861056903,-6842.16,0.00012437,2]
[323272523,1713861056913,-11764.31,0.00012437,2]
[323272524,1713861056922,-500.0,0.00012437,2]
[323272525,1713861056932,-500.0,0.00012437,2]
[323272526,1713861056943,-1110.4,0.00012437,2]
[323272527,1713861056953,-500.0,0.00012437,2]
[323272528,1713861056963,-804.61,0.00012437,2]
[323272529,1713861056972,-1879.38,0.00012437,2]
[323272530,1713861056981,-500.0,0.00012437,2]
[323272531,1713861056990,-1217.05,0.00012437,2]
[323272532,1713861056999,-608.59,0.00012437,2]
[323272533,1713861057009,-592.49,0.00012437,2]
[323272534,1713861057018,-500.0,0.00012437,2]
[323272535,1713861057028,-500.0,0.00012437,2]
[323272536,1713861057038,-503.81844168,0.00012437,2]
[323272537,1713861057047,-500.0,0.00012437,2]
[323272538,1713861057057,-500.0,0.00012437,2]
[323272539,1713861057067,-500.0,0.00012437,2]
[323272540,1713861057076,-500.0,0.00012437,2]
[323272541,1713861057085,-4197.34,0.00012438,2]
[323272542,1713861057096,-2970.57,0.00012438,2]
[323272543,1713861057105,-500.0,0.00012438,2]
[323272544,1713861057115,-500.0,0.00012438,2]
[323272545,1713861057125,-976.81,0.00012438,2]
[323272546,1713861057135,-974.74,0.00012438,2]
[323272547,1713861057145,-500.0,0.00012438,2]
[323272548,1713861057154,-500.0,0.00012438,2]
[323272549,1713861057164,-924.44,0.00012438,2]
[323272550,1713861057174,-6455.57,0.00012438,2]
[323272551,1713861057183,-500.0,0.00012438,2]
[323272552,1713861057193,-911.7,0.00012438,2]
[323272553,1713861057202,-500.0,0.00012438,2]
[323272554,1713861057211,-2826.15,0.00012438,2]
[323272555,1713861057221,-818.58,0.00012438,2]
[323272556,1713861057231,-500.0,0.00012438,2]
[323272557,1713861057240,-5088.45,0.00012438,2]
[323272558,1713861057250,-2362.31,0.00012438,2]
[323272559,1713861057259,-1116.54,0.00012438,2]
[323272560,1713861057269,-2664.34,0.00012438,2]
[323272561,1713861057278,-860.29,0.00012438,2]
[323272562,1713861057288,-500.0,0.00012438,2]
[323272563,1713861057297,-500.0,0.00012438,2]
[323272564,1713861057306,-10735.5,0.00012438,2]
[323272565,1713861057315,-1740.15,0.00012438,2]
[323272566,1713861057325,-500.0,0.00012438,2]
[323272567,1713861057335,-500.0,0.00012438,2]
[323272568,1713861057346,-583.06,0.00012438,2]
[323272569,1713861057356,-1190.66,0.00012438,2]
[323272570,1713861057365,-596.67,0.00012438,2]
[323272571,1713861057375,-29298.79,0.00012438,2]
[323272572,1713861057385,-4130.49,0.00012438,2]
[323272573,1713861057394,-155.0,0.00012439,2]
[323272574,1713861057406,-2354.9788646,0.00012439,2]
[323272575,1713861057416,-703.8696287,0.00012439,2]
[323272576,1713861057425,-157.27832228,0.00012439,2]
[323272577,1713861057434,-167.32653408,0.00012439,2]
[323272578,1713861057446,-156.71459748,0.00012439,2]
[323272579,1713861057455,-265.34513943,0.00012439,2]
[323272580,1713861057465,-181.60239483,0.00012439,2]
[323272581,1713861057476,-325.19681803,0.00012439,2]
[323272582,1713861057486,-155.42727017,0.00012439,2]
[323272583,1713861057495,-1053.81580007,0.00012439,2]
[323272584,1713861057505,-155.0,0.00012439,2]
[323272585,1713861057514,-155.32237821,0.00012439,2]
[323272586,1713861057523,-204.7384702,0.00012439,2]
[323272587,1713861057533,-500.0,0.00012439,2]
[323272588,1713861057542,-500.0,0.00012439,2]
[323272589,1713861057551,-500.0,0.00012439,2]
[323272590,1713861057561,-500.0,0.00012439,2]
[323272591,1713861057571,-1179.68,0.00012439,2]
[323272592,1713861057580,-500.0,0.00012439,2]
[323272593,1713861057590,-500.0,0.00012439,2]
[323272594,1713861057601,-500.0,0.00012439,2]
[323272595,1713861057657,-500.0,0.00012439,2]
[323272596,1713861057666,-1248.48,0.00012439,2]
[323272597,1713861057675,-500.0,0.00012439,2]
[323272598,1713861057684,-500.0,0.00012439,2]
[323272599,1713861057694,-219.43318726,0.00012439,2]
[323272600,1713861057703,-1288.5,0.00012439,2]
[323272601,1713861057712,-500.0,0.00012439,2]
[323272602,1713861057722,-500.0,0.00012439,2]
[323272603,1713861057731,-500.0,0.00012439,2]
[323272604,1713861057740,-500.0,0.00012439,2]
[323272605,1713861057749,-500.0,0.00012439,2]
[323272606,1713861057758,-601.66,0.00012439,2]
[323272607,1713861057767,-1040.4,0.00012439,2]
[323272608,1713861057777,-476.32797049,0.00012439,2]
[323272609,1713861057786,-168.93424121,0.00012439,2]
[323272610,1713861057795,-748.04,0.00012439,2]
[323272611,1713861057804,-500.0,0.00012439,2]
[323272612,1713861057813,-1363.94,0.00012439,2]
[323272613,1713861057823,-1148.4,0.00012439,2]
[323272614,1713861057832,-500.0,0.00012439,2]
[323272615,1713861057842,-500.0,0.00012439,2]
[323272616,1713861057852,-500.0,0.00012439,2]
[323272617,1713861057863,-549.47,0.00012439,2]
[323272618,1713861057872,-500.0,0.00012439,2]
[323272619,1713861057882,-500.0,0.00012439,2]
[323272620,1713861057892,-500.0,0.00012439,2]
[323272621,1713861057901,-1079.82,0.00012439,2]
[323272622,1713861057910,-1164.09,0.00012439,2]
[323272623,1713861057920,-508.891024,0.00012439,2]
[323272624,1713861057929,-1225.5,0.00012439,2]
[323272625,1713861057938,-500.0,0.00012439,2]
[323272626,1713861057948,-500.0,0.00012439,2]
[323272627,1713861057958,-500.0,0.00012439,2]
[323272628,1713861057967,-500.0,0.00012439,2]
[323272629,1713861057976,-500.0,0.00012439,2]
[323272630,1713861057986,-618.98885305,0.00012439,2]
[323272631,1713861057995,-500.0,0.00012439,2]
[323272632,1713861058004,-500.0,0.00012439,2]
[323272633,1713861058014,-500.0,0.00012439,2]
[323272634,1713861058023,-500.0,0.00012439,2]
[323272635,1713861058033,-500.0,0.00012439,2]
[323272636,1713861058043,-500.0,0.00012439,2]
[323272637,1713861058052,-231.85855787,0.00012439,2]
[323272638,1713861058062,-500.0,0.00012439,2]
[323272639,1713861058071,-986.76,0.00012439,2]
[323272640,1713861058080,-637.74581196,0.00012439,2]
[323272641,1713861058090,-500.0,0.00012439,2]
[323272642,1713861058099,-500.0,0.00012439,2]
[323272643,1713861058108,-500.0,0.00012439,2]
[323272644,1713861058117,-500.0,0.00012439,2]
[323272645,1713861058126,-500.0,0.00012439,2]
[323272646,1713861058135,-758.92,0.00012439,2]
[323272647,1713861058144,-312.38100563,0.00012439,2]
[323272648,1713861058153,-630.49,0.00012439,2]
[323272649,1713861058162,-709.29,0.00012439,2]
[323272650,1713861058171,-374.109923,0.00012439,2]
[323272651,1713861058181,-500.0,0.00012439,2]
[323272652,1713861058190,-500.0,0.00012439,2]
[323272653,1713861058200,-986.59,0.00012439,2]
[323272654,1713861058209,-500.0,0.00012439,2]
[323272655,1713861058218,-1010.01,0.00012439,2]
[323272656,1713861058227,-500.0,0.00012439,2]
[323272657,1713861058237,-500.0,0.00012439,2]
[323272658,1713861058246,-1678.51,0.00012439,2]
[323272659,1713861058256,-500.0,0.00012439,2]
[323272660,1713861058265,-969.95,0.00012439,2]
[323272661,1713861058274,-500.0,0.00012439,2]
[323272662,1713861058284,-500.0,0.00012439,2]
[323272663,1713861058293,-500.0,0.00012439,2]
[323272664,1713861058302,-500.0,0.00012439,2]
[323272665,1713861058312,-832.29,0.00012439,2]
[323272666,1713861058321,-1078.0,0.00012439,2]
[323272667,1713861058330,-500.0,0.00012439,2]
[323272668,1713861058340,-1060.64,0.00012439,2]
[323272669,1713861058349,-523.75,0.00012439,2]
[323272670,1713861058359,-730.36,0.00012439,2]
[323272671,1713861058368,-500.0,0.00012439,2]
[323272672,1713861058377,-980.94,0.00012439,2]
[323272673,1713861058387,-500.0,0.00012439,2]
[323272674,1713861058397,-500.0,0.00012439,2]
[323272675,1713861058408,-500.0,0.00012439,2]
[323272676,1713861058417,-500.0,0.00012439,2]
[323272677,1713861058427,-588.37,0.00012439,2]
[323272678,1713861058436,-500.0,0.00012439,2]
[323272679,1713861058446,-371.53778349,0.00012439,2]
[323272680,1713861058455,-500.0,0.00012439,2]
[323272681,1713861058464,-500.0,0.00012439,2]
[323272682,1713861058474,-500.0,0.00012439,2]
[323272683,1713861058483,-776.58,0.00012439,2]
[323272684,1713861058493,-500.0,0.00012439,2]
[323272685,1713861058503,-500.0,0.00012439,2]
[323272686,1713861058511,-500.0,0.00012439,2]
[323272687,1713861058521,-540.85,0.00012439,2]
[323272688,1713861058530,-500.0,0.00012439,2]
[323272689,1713861058539,-500.0,0.00012439,2]
[323272690,1713861058548,-751.1,0.00012439,2]
[323272691,1713861058557,-500.0,0.00012439,2]
[323272692,1713861058567,-360.61542317,0.00012439,2]
[323272693,1713861058576,-500.0,0.00012439,2]
[323272694,1713861058585,-500.0,0.00012439,2]
[323272695,1713861058594,-500.0,0.00012439,2]
[323272696,1713861058603,-500.0,0.00012439,2]
[323272697,1713861058613,-500.0,0.00012439,2]
[323272698,1713861058622,-500.0,0.00012439,2]
[323272699,1713861058631,-1061.24,0.00012439,2]
[323272700,1713861058641,-1683.14,0.00012439,2]
[323272701,1713861058650,-656.1,0.00012439,2]
[323272702,1713861058659,-500.0,0.00012439,2]
[323272703,1713861058668,-500.0,0.00012439,2]
[323272704,1713861058677,-154.81700358,0.00012439,2]
[323272705,1713861058687,-500.0,0.00012439,2]
[323272706,1713861058696,-543.08,0.00012439,2]
[323272707,1713861058705,-150.0,0.00012439,2]
[323272708,1713861058715,-500.0,0.00012439,2]
[323272709,1713861058724,-500.0,0.00012439,2]
[323272710,1713861058733,-507.52359149,0.00012439,2]
[323272711,1713861058742,-601.0,0.00012439,2]
[323272712,1713861058751,-528.19,0.00012439,2]
[323272713,1713861058761,-500.0,0.00012439,2]
[323272714,1713861058770,-529.1,0.00012439,2]
[323272715,1713861058779,-1140.0,0.00012439,2]
[323272716,1713861058789,-500.0,0.00012439,2]
[323272717,1713861058798,-500.0,0.00012439,2]
[323272718,1713861058807,-530.32,0.00012439,2]
[323272719,1713861058817,-877.09,0.00012439,2]
[323272720,1713861058826,-500.0,0.00012439,2]
[323272721,1713861058835,-501.82784784,0.00012439,2]
[323272722,1713861058845,-500.0,0.00012439,2]
[323272723,1713861058855,-503.16967958,0.00012439,2]
[323272724,1713861058864,-500.0,0.00012439,2]
[323272725,1713861058873,-500.0,0.00012439,2]
[323272726,1713861058883,-500.0,0.00012439,2]
[323272727,1713861058893,-427.78011369,0.00012439,2]
[323272728,1713861058902,-500.0,0.00012439,2]
[323272729,1713861058911,-500.0,0.00012439,2]
[323272730,1713861058920,-500.0,0.00012439,2]
[323272731,1713861058930,-1027.83,0.00012439,2]
[323272732,1713861058939,-1006.21,0.00012439,2]
[323272733,1713861058949,-500.0,0.00012439,2]
[323272734,1713861058958,-500.0,0.00012439,2]
[323272735,1713861058968,-356.86918121,0.00012439,2]
[323272736,1713861058977,-178.896104,0.00012439,2]
[323272737,1713861058987,-544.34,0.00012439,2]
[323272738,1713861058996,-500.0,0.00012439,2]
[323272739,1713861059005,-500.0,0.00012439,2]
[323272740,1713861059015,-438.29954375,0.00012439,2]
[323272741,1713861059024,-500.0,0.00012439,2]
[323272742,1713861059034,-500.0,0.00012439,2]
[323272743,1713861059043,-1051.92,0.00012439,2]
[323272744,1713861059053,-500.0,0.00012439,2]
[323272745,1713861059062,-178.01646389,0.00012439,2]
[323272746,1713861059072,-920.47,0.00012439,2]
[323272747,1713861059081,-793.09,0.00012439,2]
[323272748,1713861059090,-1178.1,0.00012439,2]
[323272749,1713861059100,-500.0,0.00012439,2]
[323272750,1713861059109,-506.6,0.00012439,2]
[323272751,1713861059118,-500.0,0.00012439,2]
[323272752,1713861059127,-199.424918,0.00012439,2]
[323272753,1713861059136,-500.0,0.00012439,2]
[323272754,1713861059146,-1105.07,0.00012439,2]
[323272755,1713861059155,-1032.0,0.00012439,2]
[323272756,1713861059164,-500.0,0.00012439,2]
[323272757,1713861059174,-503.47149608,0.00012439,2]
[323272758,1713861059183,-500.0,0.00012439,2]
[323272759,1713861059194,-500.0,0.00012439,2]
[323272760,1713861059202,-500.0,0.00012439,2]
[323272761,1713861059211,-612.64,0.00012439,2]
[323272762,1713861059221,-500.0,0.00012439,2]